[Event "GER-ch Women 2020"]
[Site "Magdeburg"]
[Date "2020.08.16"]
[Round "1.5"]
[White "Brunner, Sophia"]
[Black "Von Herman, Brigitte"]
[Result "0-1"]
[ECO "A46"]
[WhiteElo "1881"]
[BlackElo "2085"]
[Annotator "ChessBase"]
[PlyCount "75"]
[EventDate "2020.08.16"]
[EventType "swiss"]
[EventCountry "GER"]
[SourceTitle "playchess.com"]
[Source "ChessBase"]
[SourceQuality "1"]
[TimeControl "40/5400+30:1800+30"]

1. d4 {[%emt 0:00:00]} Nf6 {[%emt 0:00:00]} 2. Nf3 {[%emt 0:00:00]} d5 {[%emt 0:00:05]} 3. Nbd2 {[%emt 0:00:41]} Bf5 {[%emt 0:01:35]} 4. e3 {[%emt 0:05:10]} e6 {[%emt 0:01:55]} 5. c4 {[%emt 0:02:44]} c6 {[%emt 0:06:16]} 6. Be2 {[%emt 0:08:20]} h6 {[%emt 0:02:44]} 7. O-O {[%emt 0:04:05]} Nbd7 {[%emt 0:04:14]} 8. Re1 {[%emt 0:10:53]} Be7 {[%emt 0:01:12]} 9. Nf1 {[%emt 0:02:04]} Ne4 {[%emt 0:04:18]} 10. Ng3 {[%emt 0:01:45]} Nxg3 {[%emt 0:08:47]} 11. hxg3 {[%emt 0:00:20]} Nf6 {[%emt 0:02:39]} 12. Bd2 {[%emt 0:06:14]} Ne4 {[%emt 0:08:33]} 13. Bc3 {[%emt 0:08:16]} h5 {[%emt 0:11:34]} 14. Ne5 {[%emt 0:06:23]} g6 {[%emt 0:04:26]} 15. Bd3 {[%emt 0:15:29]} f6 {[%emt 0:06:49]} 16. Nf3 {[%emt 0:01:09]} Qc7 {[%emt 0:04:07]} 17. Nh4 {[%emt 0:07:33]} O-O-O {[%emt 0:01:36]} 18. c5 {[%emt 0:03:43]} g5 {[%emt 0:03:46]} 19. Nxf5 {[%emt 0:00:35]} exf5 {[%emt 0:00:07]} 20. Bxe4 {[%emt 0:05:18]} dxe4 {[%emt 0:00:57]} 21. b4 {[%emt 0:01:04]} Rd5 {[%emt 0:06:00]} 22. a4 {[%emt 0:02:15]} h4 {[%emt 0:00:08]} 23. g4 {[%emt 0:02:43]} fxg4 {[%emt 0:00:10]} 24. Qxg4+ {[%emt 0:00:13]} f5 {[%emt 0:00:09]} 25. Qh3 {[%emt 0:02:26]} Bd8 {[%emt 0:05:49]} 26. f3 {[%emt 0:02:15]} Qd7 {[%emt 0:05:49]} 27. fxe4 {[%emt 0:00:52]} g4 {[%emt 0:00:10]} 28. Qh2 {[%emt 0:00:29]} fxe4 {[%emt 0:00:32]} 29. Qf4 {[%emt 0:00:43]} Qe6 {[%emt 0:02:27]} 30. Rf1 {[%emt 0:00:35]} Bg5 {[%emt 0:01:39]} 31. Qf2 {[%emt 0:00:20]} g3 {[%emt 0:00:58]} 32. Qe1 {[%emt 0:00:45]} Qg4 {[%emt 0:01:38]} 33. Qd1 {[%emt 0:00:37]} Qe6 {[%emt 0:01:27]} 34. Qe1 {[%emt 0:00:27]} Qg4 {[%emt 0:00:53]} 35. Qd1 {[%emt 0:00:31]} Bxe3+ {[%emt 0:00:28]} 36. Kh1 {[%emt 0:00:04]} Qg5 {[%emt 0:01:10]} 37. Re1 {[%emt 0:00:56]} h3 {[%emt 0:00:24]} 38. Re2 0-1

[Event "GER-ch Women 2020"]
[Site "Magdeburg"]
[Date "2020.08.16"]
[Round "1.6"]
[White "Kopylov, Luba"]
[Black "Butenandt, Svenja"]
[Result "0-1"]
[ECO "E39"]
[WhiteElo "2027"]
[BlackElo "1879"]
[Annotator "ChessBase"]
[PlyCount "60"]
[EventDate "2020.08.16"]
[EventType "swiss"]
[EventCountry "GER"]
[SourceTitle "playchess.com"]
[Source "ChessBase"]
[SourceQuality "1"]
[TimeControl "40/5400+30:1800+30"]

1. d4 {[%emt 0:00:00]} Nf6 {[%emt 0:00:00]} 2. c4 {[%emt 0:00:00]} e6 {[%emt 0:00:00]} 3. Nc3 {[%emt 0:00:00]} Bb4 {[%emt 0:00:00]} 4. Qc2 {[%emt 0:00:00]} c5 {[%emt 0:00:00]} 5. dxc5 {[%emt 0:00:05]} O-O {[%emt 0:00:06]} 6. Nf3 {[%emt 0:00:10]} Na6 {[%emt 0:01:20]} 7. g3 {[%emt 0:00:07]} Nxc5 {[%emt 0:00:59]} 8. Bg2 {[%emt 0:00:06]} Nce4 {[%emt 0:05:48]} 9. O-O {[%emt 0:00:09]} Nxc3 {[%emt 0:00:50]} 10. bxc3 {[%emt 0:00:05]} Bc5 {[%emt 0:01:11]} 11. e4 {[%emt 0:04:25]} d6 {[%emt 0:06:39]} 12. e5 {[%emt 0:02:44]} dxe5 {[%emt 0:01:31]} 13. Nxe5 {[%emt 0:00:08]} Qc7 {[%emt 0:00:36]} 14. Qe2 {[%emt 0:02:34]} Nd7 {[%emt 0:10:41]} 15. Bf4 {[%emt 0:04:12]} Nxe5 {[%emt 0:02:21]} 16. Bxe5 {[%emt 0:00:09]} Bd6 {[%emt 0:01:56]} 17. Bxd6 {[%emt 0:11:14]} Qxd6 {[%emt 0:00:06]} 18. Rfd1 {[%emt 0:00:32]} Qc7 {[%emt 0:01:28]} 19. Rab1 {[%emt 0:02:28]} Rb8 {[%emt 0:01:03]} 20. Rb5 {[%emt 0:03:31]} b6 {[%emt 0:11:33]} 21. Rd4 {[%emt 0:02:09]} Ba6 {[%emt 0:03:06]} 22. Rg5 {[%emt 0:04:04]} Rbc8 {[%emt 0:03:06]} 23. Be4 {[%emt 0:15:10]} f5 {[%emt 0:09:56]} 24. Bd3 {[%emt 0:07:29]} e5 {[%emt 0:05:50]} 25. c5 {[%emt 0:13:12]} exd4 {[%emt 0:07:15]} 26. Bxa6 {[%emt 0:00:15]} Rce8 {[%emt 0:00:14]} 27. Bc4+ {[%emt 0:01:31]} Kh8 {[%emt 0:00:16]} 28. Rxf5 {[%emt 0:01:14]} dxc3 {[%emt 0:03:56]} 29. Bb5 {[%emt 0:05:45]} Rd8 {[%emt 0:01:02]} 30. Re5 {[%emt 0:02:50]} c2 {[%emt 0:00:52]} 0-1

[Event "GER-ch Women 2020"]
[Site "Magdeburg"]
[Date "2020.08.16"]
[Round "1.8"]
[White "Bardorz, Jana"]
[Black "Heutling, Elina"]
[Result "0-1"]
[ECO "C47"]
[WhiteElo "2000"]
[BlackElo "1833"]
[Annotator "ChessBase"]
[PlyCount "92"]
[EventDate "2020.08.16"]
[EventType "swiss"]
[EventCountry "GER"]
[SourceTitle "playchess.com"]
[Source "ChessBase"]
[SourceQuality "1"]
[TimeControl "40/5400+30:1800+30"]

1. e4 {[%emt 0:00:00]} e5 {[%emt 0:00:00]} 2. Nf3 {[%emt 0:00:00]} Nc6 {[%emt 0:00:00]} 3. Nc3 {[%emt 0:00:00]} Nf6 {[%emt 0:00:00]} 4. d4 {[%emt 0:00:00]} exd4 {[%emt 0:00:18]} 5. Nxd4 {[%emt 0:00:00]} Bb4 {[%emt 0:00:17]} 6. Nxc6 {[%emt 0:00:17]} bxc6 {[%emt 0:00:24]} 7. Bd3 {[%emt 0:00:11]} d5 {[%emt 0:06:41]} 8. exd5 {[%emt 0:01:02]} cxd5 {[%emt 0:01:43]} 9. O-O {[%emt 0:00:39]} O-O {[%emt 0:01:54]} 10. h3 {[%emt 0:01:09]} Be6 {[%emt 0:06:23]} 11. Qf3 {[%emt 0:03:10]} c6 {[%emt 0:10:38]} 12. Ne2 {[%emt 0:03:44]} Qd7 {[%emt 0:03:37]} 13. Bg5 {[%emt 0:07:32]} Be7 {[%emt 0:02:13]} 14. Rad1 {[%emt 0:03:59]} h6 {[%emt 0:06:48]} 15. Bc1 {[%emt 0:07:19]} Nh7 {[%emt 0:06:10]} 16. Nd4 {[%emt 0:09:39]} Ng5 {[%emt 0:16:41]} 17. Qh5 {[%emt 0:08:34]} f5 {[%emt 0:26:26]} 18. Rfe1 {[%emt 0:14:04]} Bf7 {[%emt 0:04:54]} 19. Qe2 {[%emt 0:02:41]} Ne4 {[%emt 0:00:48]} 20. f3 {[%emt 0:08:27]} Bc5 {[%emt 0:00:44]} 21. fxe4 {[%emt 0:01:51]} Bxd4+ {[%emt 0:00:03]} 22. Be3 {[%emt 0:01:33]} Bxb2 {[%emt 0:01:00]} 23. exf5 {[%emt 0:02:25]} Rfe8 {[%emt 0:01:03]} 24. Qg4 {[%emt 0:02:17]} h5 {[%emt 0:01:11]} 25. Qf3 {[%emt 0:02:44]} Bc3 {[%emt 0:00:58]} 26. Re2 {[%emt 0:01:28]} Rab8 {[%emt 0:00:41]} 27. Bg5 {[%emt 0:03:22]} Bd4+ {[%emt 0:00:25]} 28. Kh1 {[%emt 0:00:28]} Rxe2 {[%emt 0:00:28]} 29. Bxe2 {[%emt 0:00:17]} Be5 {[%emt 0:00:39]} 30. f6 {[%emt 0:05:39]} Qe6 {[%emt 0:00:43]} 31. fxg7 {[%emt 0:01:43]} Kxg7 {[%emt 0:00:38]} 32. Bd3 {[%emt 0:01:36]} Bd6 {[%emt 0:00:43]} 33. Rf1 {[%emt 0:01:32]} Be5 {[%emt 0:00:34]} 34. Bf5 {[%emt 0:01:32]} Qd6 {[%emt 0:00:09]} 35. g4 {[%emt 0:04:20]} d4 {[%emt 0:00:19]} 36. Be4 {[%emt 0:00:53]} Bc4 {[%emt 0:00:31]} 37. Bd3 {[%emt 0:01:37]} Bd5 {[%emt 0:00:19]} 38. Be4 {[%emt 0:00:05]} Rf8 {[%emt 0:00:07]} 39. Bh6+ {[%emt 0:01:06]} Kxh6 {[%emt 0:00:35]} 40. Qxf8+ {[%emt 0:00:13]} Qxf8 {[%emt 0:00:10]} 41. Rxf8 {[%emt 0:30:18]} Bxe4+ {[%emt 0:30:20]} 42. Kg1 {[%emt 0:00:09]} Bxc2 {[%emt 0:00:59]} 43. Re8 {[%emt 0:00:00]} Bf4 {[%emt 0:00:00]} 44. Re6+ {[%emt 0:00:00]} Kg7 {[%emt 0:00:00]} 45. Rxc6 {[%emt 0:00:00]} d3 {[%emt 0:00:00]} 46. Kf2 {[%emt 0:00:00]} d2 {[%emt 0:00:00]} 0-1

[Event "GER-ch Women 2020"]
[Site "Magdeburg"]
[Date "2020.08.16"]
[Round "1.9"]
[White "Hielscher, Ursula"]
[Black "Rogozenco, Teodora"]
[Result "1-0"]
[ECO "E20"]
[WhiteElo "1789"]
[BlackElo "1979"]
[Annotator "ChessBase"]
[PlyCount "79"]
[EventDate "2020.08.16"]
[EventType "swiss"]
[EventCountry "GER"]
[SourceTitle "playchess.com"]
[Source "ChessBase"]
[SourceQuality "1"]
[TimeControl "40/5400+30:1800+30"]

1. d4 {[%emt 0:00:00]} Nf6 {[%emt 0:00:00]} 2. c4 {[%emt 0:00:00]} e6 {[%emt 0:00:04]} 3. Nc3 {[%emt 0:00:00]} Bb4 {[%emt 0:00:11]} 4. Bd2 {[%emt 0:00:14]} b6 {[%emt 0:03:19]} 5. e3 {[%emt 0:03:24]} Bb7 {[%emt 0:00:19]} 6. Nf3 {[%emt 0:00:07]} O-O {[%emt 0:01:45]} 7. Be2 {[%emt 0:02:31]} d6 {[%emt 0:15:06]} 8. O-O {[%emt 0:04:39]} Nbd7 {[%emt 0:00:18]} 9. a3 {[%emt 0:04:28]} Bxc3 {[%emt 0:00:12]} 10. Bxc3 {[%emt 0:00:04]} Ne4 {[%emt 0:00:12]} 11. Be1 {[%emt 0:01:52]} f5 {[%emt 0:04:39]} 12. Nd2 {[%emt 0:06:17]} Qg5 {[%emt 0:03:12]} 13. f4 {[%emt 0:03:02]} Qh6 {[%emt 0:19:57]} 14. Rf3 {[%emt 0:05:23]} Rf6 {[%emt 0:18:42]} 15. Rh3 {[%emt 0:03:45]} Qg6 {[%emt 0:02:30]} 16. Bh5 {[%emt 0:01:49]} Qh6 {[%emt 0:00:05]} 17. Nxe4 {[%emt 0:07:58]} Bxe4 {[%emt 0:00:21]} 18. Bh4 {[%emt 0:00:56]} Rg6 {[%emt 0:02:20]} 19. Bg5 {[%emt 0:11:21]} Rxg5 {[%emt 0:00:17]} 20. fxg5 {[%emt 0:00:04]} Qxg5 {[%emt 0:00:09]} 21. Rg3 {[%emt 0:00:16]} Qe7 {[%emt 0:03:04]} 22. Bf3 {[%emt 0:01:46]} Nf6 {[%emt 0:00:11]} 23. Bxe4 {[%emt 0:06:13]} fxe4 {[%emt 0:00:05]} 24. Qc2 {[%emt 0:03:15]} a5 {[%emt 0:03:32]} 25. Rc1 {[%emt 0:05:28]} a4 {[%emt 0:00:38]} 26. c5 {[%emt 0:03:30]} bxc5 {[%emt 0:00:18]} 27. dxc5 {[%emt 0:00:05]} d5 {[%emt 0:00:06]} 28. c6 {[%emt 0:03:28]} e5 {[%emt 0:09:47]} 29. Qc3 {[%emt 0:03:54]} h6 {[%emt 0:01:34]} 30. Rf1 {[%emt 0:00:42]} Qe6 {[%emt 0:00:41]} 31. Rg6 {[%emt 0:03:55]} Kh7 {[%emt 0:02:07]} 32. Rg3 {[%emt 0:00:43]} Rb8 {[%emt 0:01:24]} 33. Qa5 {[%emt 0:03:02]} Qxc6 {[%emt 0:00:25]} 34. Qd2 {[%emt 0:01:19]} Qd7 {[%emt 0:02:43]} 35. Qf2 {[%emt 0:03:42]} d4 {[%emt 0:03:25]} 36. Qd2 {[%emt 0:03:37]} c5 {[%emt 0:00:21]} 37. Rc1 {[%emt 0:00:36]} Qb5 {[%emt 0:00:39]} 38. exd4 {[%emt 0:00:57]} cxd4 {[%emt 0:01:27]} 39. Rc7 {[%emt 0:01:11]} Rb7 {[%emt 0:02:39]} 40. Rgxg7+ {[%emt 0:00:08]} 1-0

[Event "GER-ch Women 2020"]
[Site "Magdeburg"]
[Date "2020.08.16"]
[Round "1.10"]
[White "Bashylina, Luisa"]
[Black "Roos, Karin"]
[Result "1-0"]
[ECO "B53"]
[WhiteElo "1975"]
[BlackElo "1772"]
[Annotator "NA"]
[PlyCount "47"]
[EventDate "2020.08.16"]
[EventType "swiss"]
[EventCountry "GER"]
[SourceTitle "playchess.com"]
[Source "ChessBase"]
[SourceQuality "1"]
[TimeControl "40/5400+30:1800+30"]

1. e4 {[%emt 0:00:00]} c5 {[%emt 0:00:00]} 2. Nf3 d6 {[%emt 0:00:07]} 3. d4 {[%emt 0:00:00]} cxd4 {[%emt 0:00:16]} 4. Qxd4 {[%emt 0:00:06]} Nc6 {[%emt 0:02:23]} 5. Bb5 {[%emt 0:00:36]} e5 {[%emt 0:05:25]} 6. Qd3 Nf6 {[%emt 0:13:09] B53: Sicilian: 2...d6: Lines with Qxd4.} 7. Bg5 {[%emt 0:05:35]} Be7 {[%emt 0:00:49]} 8. c4 {[%emt 0:08:04]} O-O {[%emt 0:01:19]} 9. Bxc6 {[%emt 0:06:46]} bxc6 {[%emt 0:00:51]} 10. Nc3 {[%emt 0:00:40] [#]} Qc7 $146 {[%emt 0:12:42]} ({Predecessor:} 10... Be6 11. O-O Rb8 12. b3 Qa5 13. Rac1 Rbd8 14. Rfd1 h6 15. Bxf6 Bxf6 16. Qb1 Qb4 {0-1 (47) Scripcaru,G (1907)-Daianu,C (2242) Sarata Monteoru 2012}) 11. O-O {[%emt 0:01:47]} Ba6 {[%emt 0:03:08]} 12. b4 {[%emt 0:14:03]} Rab8 {[%emt 0:08:12]} 13. b5 {[%emt 0:14:42]} cxb5 {[%emt 0:01:35]} 14. cxb5 {[%emt 0:00:08]} Bb7 {[%emt 0:00:45]} 15. Rac1 {[%emt 0:02:17]} Qd7 {[%emt 0:02:12]} 16. Rfd1 {[%emt 0:02:37]} Rfd8 {[%emt 0:01:25]} 17. Qe3 {[%emt 0:06:02]} a6 {[%emt 0:10:13]} 18. bxa6 {[%emt 0:07:18]} Bxa6 {[%emt 0:10:15]} 19. Nxe5 {[%emt 0:01:10]} Qe6 {[%emt 0:01:27]} 20. Nc6 {[%emt 0:01:21]} h6 {[%emt 0:04:22]} 21. Nxd8 {[%emt 0:02:58]} Rxd8 {[%emt 0:00:14]} 22. Bxf6 {[%emt 0:00:40]} Bxf6 $18 {[%emt 0:00:43]} 23. Nd5 {[%emt 0:01:23]} Be5 {[%emt 0:04:50]} 24. Qb6 1-0

[Event "GER-ch Women 2020"]
[Site "Magdeburg"]
[Date "2020.08.16"]
[Round "1.11"]
[White "Dietrich, Mareike"]
[Black "Kuehnel, Lena"]
[Result "1-0"]
[ECO "C56"]
[WhiteElo "1699"]
[BlackElo "1972"]
[Annotator "ChessBase"]
[PlyCount "115"]
[EventDate "2020.08.16"]
[EventType "swiss"]
[EventCountry "GER"]
[SourceTitle "playchess.com"]
[Source "ChessBase"]
[SourceQuality "1"]
[TimeControl "40/5400+30:1800+30"]

1. e4 {[%emt 0:00:00]} e5 {[%emt 0:00:00]} 2. Nf3 {[%emt 0:00:00]} Nc6 {[%emt 0:00:00]} 3. Bc4 {[%emt 0:00:00]} Nf6 {[%emt 0:00:00]} 4. d4 {[%emt 0:00:00]} exd4 {[%emt 0:00:00]} 5. O-O {[%emt 0:00:00]} Nxe4 {[%emt 0:00:43]} 6. Re1 {[%emt 0:00:00]} d5 {[%emt 0:00:15]} 7. Bxd5 {[%emt 0:00:03]} Qxd5 {[%emt 0:00:09]} 8. Nc3 {[%emt 0:00:03]} Qa5 {[%emt 0:00:55]} 9. Nxe4 {[%emt 0:00:07]} Be6 {[%emt 0:01:16]} 10. Neg5 {[%emt 0:01:05]} O-O-O {[%emt 0:00:55]} 11. Nxe6 {[%emt 0:00:58]} fxe6 {[%emt 0:00:06]} 12. Rxe6 {[%emt 0:00:07]} Bd6 {[%emt 0:02:11]} 13. Bg5 {[%emt 0:01:20]} Rde8 {[%emt 0:01:15]} 14. Qe2 {[%emt 0:03:14]} Kd7 {[%emt 0:01:43]} 15. Rxe8 {[%emt 0:02:31]} Rxe8 {[%emt 0:00:05]} 16. Qd3 {[%emt 0:00:04]} h6 {[%emt 0:01:50]} 17. Bh4 {[%emt 0:20:51]} g5 {[%emt 0:07:38]} 18. Bg3 {[%emt 0:00:10]} g4 {[%emt 0:04:17]} 19. Nd2 {[%emt 0:03:56]} Bxg3 {[%emt 0:22:09]} 20. hxg3 {[%emt 0:02:43]} Qe5 {[%emt 0:05:17]} 21. Nb3 {[%emt 0:10:53]} Re6 {[%emt 0:16:50]} 22. Rd1 {[%emt 0:05:27]} Rd6 {[%emt 0:03:30]} 23. Kf1 {[%emt 0:09:47]} Qh5 {[%emt 0:10:43]} 24. Qh7+ {[%emt 0:05:28]} Kc8 {[%emt 0:03:08]} 25. Qg8+ {[%emt 0:02:53]} Rd8 {[%emt 0:01:54]} 26. Qe6+ {[%emt 0:01:33]} Kb8 {[%emt 0:00:30]} 27. Kg1 {[%emt 0:09:55]} a6 {[%emt 0:06:05]} 28. Re1 {[%emt 0:01:27]} Qg5 {[%emt 0:01:21]} 29. a3 {[%emt 0:06:42]} d3 {[%emt 0:01:47]} 30. cxd3 {[%emt 0:00:58]} Rxd3 {[%emt 0:00:07]} 31. Qc4 {[%emt 0:00:40]} Qd8 {[%emt 0:02:59]} 32. Nc5 {[%emt 0:02:31]} Qd5 {[%emt 0:03:46]} 33. Qxd3 {[%emt 0:00:55]} Qxc5 {[%emt 0:00:01]} 34. Re8+ {[%emt 0:00:35]} Ka7 {[%emt 0:00:04]} 35. Qe3 {[%emt 0:00:21]} Kb6 {[%emt 0:00:35]} 36. Qxc5+ {[%emt 0:01:06]} Kxc5 {[%emt 0:00:02]} 37. Re4 {[%emt 0:01:33]} h5 {[%emt 0:00:18]} 38. Kf1 {[%emt 0:01:19]} b5 {[%emt 0:00:59]} 39. Rf4 {[%emt 0:04:22]} Nd4 {[%emt 0:00:44]} 40. Ke1 {[%emt 0:02:28]} Kc4 {[%emt 0:01:24]} 41. Kd2 {[%emt 0:31:42]} c5 {[%emt 0:30:46]} 42. b4 {[%emt 0:00:00]} Kd5 {[%emt 0:00:00]} 43. bxc5 {[%emt 0:00:00]} Kxc5 {[%emt 0:00:00]} 44. Kd3 {[%emt 0:00:00]} Nb3 {[%emt 0:00:00]} 45. Rf5+ {[%emt 0:00:00]} Kb6 {[%emt 0:00:00]} 46. Rxh5 {[%emt 0:00:00]} Ka5 {[%emt 0:00:00]} 47. Kc3 {[%emt 0:00:00]} Ka4 {[%emt 0:00:00]} 48. Rh6 {[%emt 0:00:00]} a5 {[%emt 0:00:00]} 49. Rb6 {[%emt 0:00:00]} Nc1 {[%emt 0:00:00]} 50. Re6 {[%emt 0:00:00]} Kxa3 {[%emt 0:00:00]} 51. f4 {[%emt 0:00:00]} gxf3 {[%emt 0:00:00]} 52. gxf3 {[%emt 0:00:00]} b4+ {[%emt 0:00:00]} 53. Kc2 {[%emt 0:00:00]} b3+ {[%emt 0:02:10]} 54. Kxc1 {[%emt 0:00:00]} Ka2 {[%emt 0:00:06]} 55. Rb6 {[%emt 0:00:00]} a4 {[%emt 0:00:29]} 56. Rb4 {[%emt 0:00:00]} a3 {[%emt 0:02:40]} 57. Rxb3 {[%emt 0:00:00]} Kxb3 {[%emt 0:00:04]} 58. Kb1 {[%emt 0:00:00]} 1-0

[Event "GER-ch Women 2020"]
[Site "Magdeburg"]
[Date "2020.08.17"]
[Round "2.1"]
[White "Osmanodja, Filiz"]
[Black "Bashylina, Luisa"]
[Result "0-1"]
[ECO "C15"]
[WhiteElo "2293"]
[BlackElo "1975"]
[Annotator "ChessBase"]
[PlyCount "90"]
[EventDate "2020.08.16"]
[EventType "swiss"]
[EventCountry "GER"]
[SourceTitle "playchess.com"]
[Source "ChessBase"]
[SourceQuality "1"]
[TimeControl "40/5400+30:1800+30"]

1. e4 {[%emt 0:00:00]} e6 {[%emt 0:00:00]} 2. d4 {[%emt 0:00:00]} d5 {[%emt 0:00:00]} 3. Nc3 {[%emt 0:00:01]} Bb4 {[%emt 0:00:00]} 4. exd5 {[%emt 0:00:31]} exd5 {[%emt 0:00:00]} 5. Bd3 {[%emt 0:00:07]} Nf6 {[%emt 0:00:22]} 6. Nge2 {[%emt 0:00:50]} O-O {[%emt 0:02:21]} 7. O-O {[%emt 0:00:09]} h6 {[%emt 0:02:03]} 8. a3 {[%emt 0:02:24]} Be7 {[%emt 0:03:06]} 9. Ng3 {[%emt 0:01:35]} Re8 {[%emt 0:03:45]} 10. Nf5 {[%emt 0:01:11]} Bf8 {[%emt 0:00:54]} 11. Ne2 {[%emt 0:04:33]} Ne4 {[%emt 0:04:18]} 12. Neg3 {[%emt 0:06:15]} Nc6 {[%emt 0:17:14]} 13. c3 {[%emt 0:01:53]} Qf6 {[%emt 0:02:06]} 14. Ne3 {[%emt 0:02:29]} Qd8 {[%emt 0:11:12]} 15. Qf3 {[%emt 0:04:39]} Nf6 {[%emt 0:01:37]} 16. Nef5 {[%emt 0:05:17]} Be6 {[%emt 0:04:10]} 17. Bd2 {[%emt 0:01:18]} Na5 {[%emt 0:04:57]} 18. Rae1 {[%emt 0:02:03]} Nc4 {[%emt 0:04:09]} 19. Bc1 {[%emt 0:03:16]} c6 {[%emt 0:00:25]} 20. Re2 {[%emt 0:03:51]} b5 {[%emt 0:03:37]} 21. Rfe1 {[%emt 0:02:26]} a5 {[%emt 0:00:41]} 22. Nh5 {[%emt 0:06:47]} Nxh5 {[%emt 0:02:21]} 23. Qxh5 {[%emt 0:01:11]} Qf6 {[%emt 0:00:56]} 24. Qf3 {[%emt 0:05:46]} Kh8 {[%emt 0:02:38]} 25. Bf4 {[%emt 0:02:27]} Bd7 {[%emt 0:03:24]} 26. Nxh6 {[%emt 0:05:51]} Bd6 {[%emt 0:06:12]} 27. Rxe8+ {[%emt 0:21:35]} Rxe8 {[%emt 0:00:45]} 28. Rxe8+ {[%emt 0:00:02]} Bxe8 {[%emt 0:00:01]} 29. Nf5 {[%emt 0:06:08]} Bxf4 {[%emt 0:02:15]} 30. Qxf4 {[%emt 0:00:02]} Nxb2 {[%emt 0:00:51]} 31. Bc2 {[%emt 0:00:58]} a4 {[%emt 0:01:20]} 32. Qe3 {[%emt 0:04:10]} Bd7 {[%emt 0:03:12]} 33. g4 {[%emt 0:04:02]} Nc4 {[%emt 0:04:18]} 34. Qg3 {[%emt 0:01:31]} Bxf5 {[%emt 0:02:14]} 35. Bxf5 {[%emt 0:00:44]} g6 {[%emt 0:00:46]} 36. Bd7 {[%emt 0:00:57]} Nxa3 {[%emt 0:05:14]} 37. g5 {[%emt 0:00:01]} Qe7 {[%emt 0:00:50]} 38. Qh4+ {[%emt 0:01:11]} Kg8 {[%emt 0:00:11]} 39. Bxc6 {[%emt 0:00:32]} Qd6 {[%emt 0:02:07]} 40. Ba8 {[%emt 0:00:44]} Nb1 {[%emt 0:02:01]} 41. Qg4 {[%emt 0:03:52]} a3 {[%emt 0:02:23]} 42. Qf3 {[%emt 0:04:16]} Nd2 {[%emt 0:01:51]} 43. Qd1 {[%emt 0:02:14]} a2 {[%emt 0:00:27]} 44. Qa1 {[%emt 0:00:01]} Qa3 {[%emt 0:00:37]} 45. Bxd5 {[%emt 0:00:14]} Nb3 {[%emt 0:00:13]} 0-1

[Event "GER-ch Women 2020"]
[Site "Magdeburg"]
[Date "2020.08.17"]
[Round "2.2"]
[White "Butenandt, Svenja"]
[Black "Voicu-Jagodzinsky, Carmen"]
[Result "0-1"]
[ECO "D32"]
[WhiteElo "1879"]
[BlackElo "2244"]
[Annotator "ChessBase"]
[PlyCount "76"]
[EventDate "2020.08.16"]
[EventType "swiss"]
[EventCountry "GER"]
[SourceTitle "playchess.com"]
[Source "ChessBase"]
[SourceQuality "1"]
[TimeControl "40/5400+30:1800+30"]

1. d4 {[%emt 0:00:00]} d5 {[%emt 0:00:00]} 2. c4 {[%emt 0:00:00]} e6 {[%emt 0:00:00]} 3. Nc3 {[%emt 0:00:00]} c5 {[%emt 0:00:00]} 4. cxd5 {[%emt 0:00:36]} exd5 {[%emt 0:00:00]} 5. Nf3 {[%emt 0:00:22]} Nc6 {[%emt 0:00:00]} 6. dxc5 {[%emt 0:00:49]} d4 {[%emt 0:00:16]} 7. Na4 {[%emt 0:00:13]} Bxc5 {[%emt 0:00:45]} 8. Nxc5 {[%emt 0:00:25]} Qa5+ {[%emt 0:00:08]} 9. Bd2 {[%emt 0:00:26]} Qxc5 {[%emt 0:00:05]} 10. e3 {[%emt 0:00:36]} Qb6 {[%emt 0:15:55]} 11. exd4 {[%emt 0:13:41]} Qxb2 {[%emt 0:03:29]} 12. Qc1 {[%emt 0:02:22]} Qxc1+ {[%emt 0:01:59]} 13. Rxc1 {[%emt 0:00:07]} Be6 {[%emt 0:02:31]} 14. Bc4 {[%emt 0:07:57]} Bxc4 {[%emt 0:03:28]} 15. Rxc4 {[%emt 0:00:07]} Nge7 {[%emt 0:01:57]} 16. O-O {[%emt 0:01:04]} Rd8 {[%emt 0:01:01]} 17. Rd1 {[%emt 0:07:28]} f6 {[%emt 0:00:37]} 18. Be3 {[%emt 0:05:37]} Kf7 {[%emt 0:01:22]} 19. Rc5 {[%emt 0:08:45]} Rd5 {[%emt 0:02:06]} 20. Rxd5 {[%emt 0:01:42]} Nxd5 {[%emt 0:00:15]} 21. Rb1 {[%emt 0:02:47]} b6 {[%emt 0:03:32]} 22. Rc1 {[%emt 0:02:16]} Rc8 {[%emt 0:00:30]} 23. Kf1 {[%emt 0:07:13]} Ke6 {[%emt 0:01:06]} 24. g4 {[%emt 0:03:43]} Rc7 {[%emt 0:08:33]} 25. Re1 {[%emt 0:05:49]} Kd7 {[%emt 0:07:19]} 26. Rc1 {[%emt 0:01:54]} a5 {[%emt 0:06:45]} 27. g5 {[%emt 0:05:44]} Ncb4 {[%emt 0:09:06]} 28. Rxc7+ {[%emt 0:03:45]} Kxc7 {[%emt 0:00:38]} 29. gxf6 {[%emt 0:00:24]} gxf6 {[%emt 0:00:51]} 30. a3 {[%emt 0:06:12]} Nxe3+ {[%emt 0:01:45]} 31. fxe3 {[%emt 0:00:12]} Nc2 {[%emt 0:00:04]} 32. Ke2 {[%emt 0:00:23]} Nxa3 {[%emt 0:00:13]} 33. Kd3 {[%emt 0:00:18]} b5 {[%emt 0:08:44]} 34. Nd2 {[%emt 0:02:41]} f5 {[%emt 0:02:54]} 35. Kc3 {[%emt 0:01:19]} Kc6 {[%emt 0:03:38]} 36. Kb3 {[%emt 0:01:05]} b4 {[%emt 0:00:56]} 37. Ka4 {[%emt 0:02:45]} Kd5 {[%emt 0:00:53]} 38. Kxa5 {[%emt 0:00:52]} Nc4+ {[%emt 0:00:35]} 0-1